bitfinex-derivatives/quotes_ETHF0:USTF0_20240831
["timestamp","ask_amount","ask_price","bid_price","bid_amount"]
[1725142601085,0.00595415,2519.6,2519.5,10.78798712]
[1725142602088,0.00595415,2519.6,2519.5,4.20695]
[1725142602496,0.00595415,2519.6,2519.5,4.78769826]
[1725142605484,0.00595415,2519.6,2519.5,0.58074826]
[1725142605690,0.51025415,2519.6,2519.5,0.58074826]
[1725142606397,0.51025415,2519.6,2519.5,4.54954826]
[1725142606590,0.51025415,2519.6,2519.5,0.58074826]
[1725142606797,0.51025415,2519.6,2519.5,4.54954826]
[1725142606992,0.51025415,2519.6,2519.5,0.58074826]
[1725142609000,0.51025415,2519.6,2519.5,0.58081694]
[1725142610700,0.00595415,2519.6,2519.5,4.54961694]
[1725142612493,0.00595415,2519.6,2519.5,0.58081694]
[1725142613096,0.00595415,2519.6,2519.5,4.54961694]
[1725142614094,0.00595415,2519.6,2519.5,5.02361694]
[1725142614398,0.00595415,2519.6,2519.5,4.4428]
[1725142614598,0.00595415,2519.6,2519.5,5.02356882]
[1725142614894,0.00595415,2519.6,2519.5,5.26171882]
[1725142615501,0.00595415,2519.6,2519.5,4.68095]
[1725142615693,0.00595415,2519.6,2519.5,5.26168928]
[1725142616095,0.00595415,2519.6,2519.5,4.68095]
[1725142616397,0.00595415,2519.6,2519.5,5.26171026]
[1725142619104,3.2078,2520.4,2519.5,11.02356026]
[1725142619306,3.2078,2520.4,2519.9,0.2381]
[1725142619307,1.29,2520.3,2519.9,0.2381]
[1725142619489,1.29,2520.3,2520.0,0.9747]
[1725142619689,1.29,2520.1,2520.0,0.9747]
[1725142619894,1.29,2520.1,2519.8,3.2078]
[1725142620096,1.7923,2520.1,2519.8,3.7001]
[1725142620295,2.3026,2520.1,2519.8,3.7001]
[1725142620500,1.29,2519.9,2519.6,0.9523]
[1725142620792,1.29,2519.9,2519.7,0.5805501]
[1725142620996,1.29,2519.9,2519.5,7.8131]
[1725142620997,0.5117,2519.8,2519.5,4.6053]
[1725142621199,0.5117,2519.8,2519.6,0.58065937]
[1725142621397,0.5117,2519.8,2519.5,0.4923]
[1725142621598,0.5117,2519.8,2519.3,0.70806]
[1725142621810,0.5117,2519.8,2519.4,1.42544748]
[1725142622004,1.29,2520.0,2519.6,0.23813]
[1725142622205,1.801,2520.0,2519.7,0.4926]
[1725142625003,1.801,2520.0,2519.8,0.5159]
[1725142631609,1.801,2520.0,2519.7,0.9599]
[1725142632011,4.4978,2519.8,2519.4,0.468]
[1725142632217,1.0023,2519.7,2519.5,0.58070657]
[1725142632415,1.0023,2519.7,2519.4,1.67326]
[1725142632617,1.0023,2519.7,2519.5,0.58071285]
[1725142632818,1.0023,2519.7,2519.4,5.64206]
[1725142633014,1.0023,2519.7,2519.5,0.58074329]
[1725142633220,1.0023,2519.7,2519.4,5.64206]
[1725142634220,1.0023,2519.7,2519.5,0.58077692]
[1725142634528,1.0023,2519.7,2519.4,5.4039]
[1725142634729,1.0023,2519.7,2519.5,0.58073437]
[1725142635021,2.7875,2519.7,2519.3,7.3208]
[1725142635223,1.29,2519.5,2519.3,7.3208]
[1725142635615,0.4772,2519.4,2519.3,7.3208]
[1725142636028,0.4772,2519.4,2519.3,3.2078]
[1725142638830,0.4772,2519.4,2519.0,0.24415415]
[1725142639030,0.4772,2519.4,2519.1,0.58097938]
[1725142639338,0.4772,2519.4,2519.2,0.58097938]
[1725142639633,0.5071,2519.3,2519.0,0.24415415]
[1725142639835,0.5071,2519.3,2519.1,0.58100422]
[1725142639836,0.9836,2519.3,2519.1,0.58100422]
[1725142640037,0.9836,2519.3,2519.0,0.24415415]
[1725142640238,0.9836,2519.3,2519.1,0.58100339]
[1725142640538,0.9836,2519.3,2519.0,0.24415415]
[1725142640748,0.9836,2519.3,2519.1,0.58100769]
[1725142641041,0.9836,2519.3,2519.0,0.00595415]
[1725142641243,0.9836,2519.3,2519.1,0.58101838]
[1725142641546,0.9836,2519.3,2519.0,0.00595415]
[1725142641749,0.9836,2519.3,2519.1,0.58099064]
[1725142641946,0.9836,2519.3,2519.0,0.00595415]
[1725142642242,0.9836,2519.3,2519.1,0.58104611]
[1725142642433,0.9836,2519.3,2519.0,0.00595415]
[1725142642636,2.51177,2519.3,2519.1,0.58107171]
[1725142642836,2.51177,2519.3,2519.0,0.00595415]
[1725142644630,2.2736,2519.3,2519.0,0.00595415]
[1725142645338,2.2736,2519.3,2519.1,0.5810855]
[1725142645538,2.2736,2519.3,2519.0,0.00595415]
[1725142646634,2.2736,2519.3,2519.1,0.58108734]
[1725142646834,2.2736,2519.3,2519.0,0.00595415]
[1725142647345,0.4772,2519.4,2519.1,0.81923954]
[1725142647540,0.4772,2519.4,2519.1,0.5074]
[1725142647742,0.9803,2519.3,2519.1,0.5074]
[1725142648640,0.9803,2519.3,2519.1,0.74558]
[1725142649144,0.5078,2519.3,2519.1,0.5074]
[1725142652145,0.5078,2519.3,2519.1,0.74559]
[1725142653540,0.5078,2519.3,2519.1,0.5074]
[1725142655240,0.5078,2519.3,2519.1,0.74559]
[1725142655955,0.5078,2519.3,2519.1,0.5074]
[1725142667862,0.4772,2519.4,2519.1,0.5074]
[1725142668463,0.4772,2519.4,2519.2,0.58099031]
[1725142668658,0.4772,2519.4,2519.1,0.5074]
[1725142669051,0.4772,2519.4,2519.2,0.58097084]
[1725142669263,0.4772,2519.4,2519.1,0.5074]
[1725142669564,0.4772,2519.4,2519.2,0.58097798]
[1725142669868,0.4772,2519.4,2519.1,0.5074]
[1725142670062,0.4772,2519.4,2519.2,0.58098037]
[1725142670364,0.4772,2519.4,2519.1,0.5074]
[1725142670579,0.4772,2519.4,2519.2,0.58098283]
[1725142670860,0.4772,2519.4,2519.1,0.5074]
[1725142671066,0.4772,2519.4,2519.2,0.58097317]
[1725142671367,0.4772,2519.4,2519.1,0.5074]
[1725142671659,0.4772,2519.4,2519.2,0.58097256]
[1725142671854,0.4772,2519.4,2519.1,0.5074]
[1725142672050,0.4772,2519.4,2519.2,0.5809879]
[1725142672263,0.4772,2519.4,2519.1,0.5074]
[1725142672665,0.4772,2519.4,2519.2,0.58098147]
[1725142672852,0.4772,2519.4,2519.1,0.5074]
[1725142673054,0.4772,2519.4,2519.2,0.58098043]
[1725142673265,0.4772,2519.4,2519.3,0.58098121]
[1725142673856,0.4772,2519.4,2519.1,0.5074]
[1725142674160,0.4772,2519.4,2519.2,0.58101035]
[1725142674357,0.4772,2519.4,2519.1,0.5074]
[1725142674557,0.4772,2519.4,2519.2,0.58100444]
[1725142674756,0.4772,2519.4,2519.3,0.58100444]
[1725142678079,0.4772,2519.4,2519.3,1.66435456]
[1725142680966,0.4772,2519.4,2519.3,1.42618456]
[1725142681570,0.4772,2519.4,2519.3,1.66435456]
[1725142684270,1.29,2519.9,2519.3,5.78290964]
[1725142684566,1.29,2519.9,2519.6,0.23814]
[1725142684567,1.7625,2519.9,2519.6,0.23814]
[1725142684782,1.7625,2519.9,2519.7,1.42618456]
[1725142684958,1.7625,2519.9,2519.8,1.42618456]
[1725142685369,1.7625,2519.9,2519.8,1.42550543]
[1725142685871,1.7625,2519.9,2519.8,0.58070792]
[1725142687269,0.4725,2519.9,2519.8,0.58070792]
[1725142687774,1.7625,2519.9,2519.8,0.58070792]
[1725142688473,5.7313,2519.9,2519.8,0.58070792]
[1725142688877,5.7313,2519.9,2519.5,0.23815]
[1725142689072,1.7625,2519.9,2519.8,0.58074611]
[1725142689264,1.7625,2519.9,2519.5,0.23815]
[1725142689465,1.7625,2519.9,2519.8,0.58074799]
[1725142689682,5.7313,2519.9,2519.8,0.58074799]
[1725142690062,5.7313,2519.9,2519.5,0.23815]
[1725142690376,1.7625,2519.9,2519.6,0.81892102]
[1725142690573,1.7625,2519.9,2519.7,0.58078102]
[1725142690776,1.7625,2519.9,2519.6,0.23814]
[1725142690979,1.7625,2519.9,2519.7,0.58076915]
[1725142691276,1.7625,2519.9,2519.6,0.23814]
[1725142691475,1.7625,2519.9,2519.7,0.5807652]
[1725142691683,1.7625,2519.9,2519.6,0.23814]
[1725142691978,1.7625,2519.9,2519.7,0.58076441]
[1725142692275,1.7625,2519.9,2519.6,0.23814]
[1725142692468,1.7625,2519.9,2519.7,0.58076381]
[1725142692668,1.7625,2519.9,2519.5,0.23814]
[1725142692871,1.7625,2519.9,2519.6,0.58076901]
[1725142693066,1.7625,2519.9,2519.7,0.58076901]
[1725142693282,1.7625,2519.9,2519.5,0.23814]
[1725142693470,1.7625,2519.9,2519.6,0.58076865]
[1725142693674,1.7625,2519.9,2519.7,0.58076865]
[1725142693982,1.7625,2519.9,2519.5,0.23814]
[1725142694172,1.7625,2519.9,2519.6,0.58076537]
[1725142694475,1.7625,2519.9,2519.5,0.23814]
[1725142694476,1.7625,2519.9,2519.7,0.58076537]
[1725142694778,0.4725,2519.9,2519.8,0.5806811]
[1725142694971,3.2078,2520.0,2519.8,0.5806811]
[1725142695167,3.2078,2520.0,2519.9,1.2931811]
[1725142695770,3.2078,2520.0,2519.9,1.6539811]
[1725142695970,3.2078,2520.0,2519.9,1.65389611]
[1725142696377,0.3613,2520.1,2519.9,1.65389611]
[1725142696570,0.00595415,2520.2,2520.0,0.58052697]
[1725142696774,0.00595415,2520.2,2519.9,1.31141]
[1725142696973,0.00595415,2520.2,2520.0,0.5804963]
[1725142697278,0.00595415,2520.2,2519.9,1.31141]
[1725142697481,0.00595415,2520.2,2520.0,0.81857395]
[1725142697667,0.00595415,2520.2,2520.0,0.2381]
[1725142699588,0.00595415,2520.2,2520.1,0.23809]
[1725142701275,0.00595415,2520.2,2520.0,0.2381]
[1725142701783,0.00595415,2520.2,2520.1,0.23809]
[1725142701980,0.00595415,2520.2,2519.9,1.0733]
[1725142701981,0.00595415,2520.2,2520.0,0.2381]
[1725142702181,0.00595415,2520.2,2520.1,0.23809]
[1725142703784,0.00595415,2520.2,2520.1,4.20609]
[1725142704083,3.2078,2520.7,2520.5,0.23805]
[1725142704285,3.2078,2520.7,2520.6,0.7217]
[1725142704588,3.2078,2520.7,2520.6,1.0974]
[1725142705881,1.13755415,2520.9,2520.6,5.30265]
[1725142706189,0.75185415,2520.9,2520.6,1.33545]
[1725142706685,0.75185415,2520.9,2520.6,1.0974]
[1725142723294,0.75185415,2520.9,2520.6,1.33544]
[1725142732007,0.75185415,2520.9,2520.6,1.0974]
[1725142737305,0.39455415,2520.9,2520.6,1.0974]
[1725142738703,0.00595415,2520.9,2520.8,0.23803]
[1725142738899,0.00595415,2520.9,2520.8,1.52803]
[1725142739110,0.00595415,2520.9,2520.8,6.07517528]
[1725142740705,0.00595415,2520.9,2520.8,6.9187739]
[1725142741105,0.00595415,2520.9,2520.8,5.49523]
[1725142741321,0.00595415,2520.9,2520.8,6.91876075]
[1725142744313,0.00595415,2520.9,2520.8,6.91865548]
[1725142744709,0.00595415,2520.9,2520.8,5.62865548]
[1725142744909,0.00595415,2520.9,2520.8,6.91865548]
[1725142746411,0.00595415,2520.9,2520.8,7.30501797]
[1725142747320,0.00595415,2520.9,2520.8,5.49523]
[1725142747816,0.00595415,2520.9,2520.8,7.30502967]
[1725142749113,0.00595415,2520.9,2520.8,6.01502967]
[1725142749313,0.00595415,2520.9,2520.8,7.06699967]
[1725142749517,0.00595415,2520.9,2520.8,7.30502967]
[1725142751628,3.97315415,2520.9,2520.8,1.42343267]
[1725142751920,3.97315415,2520.9,2520.8,0.57987517]
[1725142752521,4.34445415,2520.9,2520.8,0.57987517]
[1725142756624,4.58247415,2520.9,2520.8,0.57987517]
[1725142760536,4.58247415,2520.9,2520.4,1.29595415]
[1725142760537,0.23803,2520.8,2520.4,1.29595415]
[1725142760927,0.23803,2520.8,2520.5,0.84393394]
[1725142761133,0.23803,2520.8,2520.6,1.42406394]
[1725142761332,0.23803,2520.8,2520.7,0.58013]
[1725142761937,0.61527415,2520.9,2520.7,1.42400187]
[1725142762236,0.61527415,2520.9,2520.8,0.58013]
[1725142762637,4.58247415,2520.9,2520.8,0.58013]
[1725142764038,0.23803,2520.8,2520.4,1.29595415]
[1725142764232,0.61527415,2520.9,2520.5,1.42405947]
[1725142764442,0.61527415,2520.9,2520.6,1.42405947]
[1725142764737,0.61527415,2520.9,2520.7,0.58012548]
[1725142764939,0.61527415,2520.9,2520.8,0.58012548]
[1725142765436,4.58247415,2520.9,2520.8,0.58012548]
[1725142766341,4.58247415,2520.9,2520.8,0.58011878]
[1725142767148,0.23803,2520.8,2520.4,1.29595415]
[1725142767438,0.23803,2520.8,2520.5,0.84392898]
[1725142767637,0.23803,2520.8,2520.6,1.42405212]
[1725142767837,0.23803,2520.8,2520.7,0.58012314]
[1725142777146,0.23803,2520.8,2520.4,1.29595415]
[1725142777339,0.23803,2520.8,2520.7,0.58009776]
[1725142780551,0.23803,2520.8,2520.7,0.58012823]
[1725142783744,0.23803,2520.8,2520.7,0.58011582]
[1725142787048,0.23803,2520.8,2520.4,1.29595415]
[1725142787245,0.23803,2520.8,2520.7,0.58010206]
[1725142790548,0.23803,2520.8,2520.4,0.00595415]
[1725142790754,0.23803,2520.8,2520.7,0.58007967]
[1725142794350,0.23805,2520.5,2520.4,0.00595415]
[1725142794557,3.44585,2520.5,2520.4,1.43032027]
[1725142794753,7.41305,2520.5,2520.4,0.58620235]
[1725142796457,7.41305,2520.5,2520.4,1.43036337]
[1725142797054,7.41305,2520.5,2520.4,0.00595415]
[1725142797553,7.41305,2520.5,2520.4,1.43039104]
[1725142798348,7.41305,2520.5,2520.4,0.58623077]
[1725142798952,8.70305,2520.5,2520.4,0.58623077]
[1725142799157,8.70305,2520.5,2520.4,0.00595415]
[1725142805678,8.70305,2520.5,2520.0,4.113]
[1725142805679,0.23809,2520.1,2520.0,4.113]
[1725142805866,0.23811,2519.9,2519.6,2.0229]
[1725142806061,0.3701,2519.8,2519.7,1.42503768]
[1725142806369,0.23811,2519.9,2519.7,1.42503768]
[1725142806563,0.23811,2519.9,2519.8,0.58051828]
[1725142806764,1.35561,2520.0,2519.8,0.58051828]
[1725142806971,1.35561,2520.0,2519.6,2.3867]
[1725142807165,1.35561,2520.0,2519.7,1.42507341]
[1725142807367,0.96941,2520.0,2519.8,0.58053267]
[1725142807562,0.96941,2520.0,2519.6,2.3867]
[1725142807765,0.23811,2519.9,2519.7,0.58053598]
[1725142808072,0.61171,2519.9,2519.6,0.7329]
[1725142808269,0.23813,2519.8,2519.6,0.3789]
[1725142808476,1.52813,2519.8,2519.5,0.00595415]
[1725142809556,0.23813,2519.7,2519.5,0.00595415]
[1725142809761,1.52814,2519.6,2519.5,0.00595415]
[1725142809968,6.24234,2519.6,2519.5,0.00595415]
[1725142810262,12.24234,2519.6,2519.5,0.00595415]
[1725142810468,6.24234,2519.6,2519.5,0.00595415]
[1725142810971,0.23818,2519.2,2519.0,4.50374885]
[1725142811574,0.3676,2519.1,2519.0,4.50374885]
[1725142812272,4.3372,2519.1,2519.0,4.50374885]
[1725142818572,0.00595415,2519.3,2519.0,1.5282]
[1725142818773,0.00595415,2519.3,2519.0,1.29]
[1725142818983,0.37105415,2519.3,2518.9,2.396]
[1725142819474,0.37105415,2519.3,2518.9,2.63421]
[1725142820077,0.37105415,2519.3,2518.9,2.396]
[1725142820270,0.37105415,2519.3,2518.9,1.106]
[1725142820466,1.35922415,2519.3,2518.9,0.7528]
[1725142820664,1.35922415,2519.3,2518.9,1.1324]
[1725142822683,1.12105415,2519.3,2518.9,1.1324]
[1725142823974,0.00595415,2519.3,2518.9,1.1324]
[1725142824178,0.00595415,2519.3,2519.0,0.23819]
[1725142824777,0.00595415,2519.3,2518.9,1.3706]
[1725142824981,0.00595415,2519.3,2519.0,0.2382]
[1725142827573,0.00595415,2519.3,2519.1,0.23818]
[1725142827974,0.00595415,2519.3,2519.2,0.3753]
[1725142830581,1.29595415,2519.3,2518.9,0.991]
[1725142830774,2.03255415,2519.3,2518.9,1.3485]
[1725142831877,2.27072415,2519.3,2518.9,1.1103]
[1725142833583,1.29595415,2519.3,2518.9,1.3485]
[1725142835568,1.53412415,2519.3,2518.9,1.1103]
[1725142837276,1.29595415,2519.3,2518.9,1.1103]
[1725142837579,1.29595415,2519.3,2519.0,0.2382]
[1725142838181,1.29595415,2519.3,2518.9,1.3485]
[1725142839887,1.53412415,2519.3,2518.9,1.1103]
[1725142840081,1.53412415,2519.3,2518.9,0.7528]
[1725142840987,1.53412415,2519.3,2518.8,0.00595415]
[1725142840988,1.29,2519.1,2518.8,0.00595415]
[1725142841181,1.1345,2519.0,2518.8,0.00595415]
[1725142851008,1.3727,2519.0,2518.8,0.00595415]
[1725142851210,1.52821,2518.9,2518.8,0.00595415]
[1725142851608,5.49861,2518.9,2518.8,0.00595415]
[1725142853012,8.70641,2518.9,2518.8,0.00595415]
[1725142856615,19.25481377,2518.9,2518.8,0.00595415]
[1725142860711,19.01660377,2518.9,2517.9,0.2383]
[1725142860916,1.52826,2518.4,2518.0,0.58178202]
[1725142861116,0.3799,2518.3,2517.9,0.3896]
[1725142861318,0.751,2518.3,2518.1,0.58188984]
[1725142861614,0.751,2518.3,2517.9,0.3896]
[1725142861825,0.751,2518.3,2518.0,0.58192361]
[1725142861826,0.98927,2518.3,2518.0,0.58192361]
[1725142862013,0.98927,2518.3,2517.9,0.3896]
[1725142862330,1.29,2518.1,2517.9,0.3896]
[1725142862617,1.29,2518.0,2517.9,0.3896]
[1725142863213,1.6542,2518.1,2517.9,0.3896]
[1725142863410,1.29,2518.1,2517.9,0.3896]
[1725142867813,1.29,2518.0,2517.8,0.36935415]
[1725142868026,1.6583,2518.0,2517.8,0.36935415]
[1725142871923,1.6583,2518.0,2517.8,0.00595415]
[1725142872123,1.6583,2518.0,2517.8,0.37335415]
[1725142876946,1.6583,2518.0,2517.8,0.00595415]
[1725142877132,0.3534,2517.9,2517.8,0.00595415]
[1725142877429,4.58008008,2517.9,2517.8,0.00595415]
[1725142877728,8.55208008,2517.9,2517.8,0.00595415]
[1725142878825,9.84208008,2517.9,2517.8,0.00595415]
[1725142879021,5.87008008,2517.9,2517.8,0.00595415]
[1725142879527,4.22668008,2517.9,2517.8,0.00595415]
[1725142879732,1.29,2518.1,2517.8,3.97795415]
[1725142879930,1.29,2518.1,2517.9,1.1095]
[1725142880935,1.29,2518.1,2517.9,1.3478]
[1725142890140,1.29,2518.1,2518.0,0.23829]
[1725142896539,1.29,2518.1,2518.0,0.82097664]
[1725142896742,1.29,2518.1,2518.0,0.58268664]
[1725142896937,1.29,2518.1,2517.8,0.00595415]
[1725142897135,2.0435,2518.0,2517.8,0.00595415]
[1725142897340,2.0435,2518.0,2517.9,0.58329172]
[1725142900347,2.0435,2518.0,2517.9,0.58463195]
[1725142900550,2.0435,2518.0,2517.9,1.43516308]
[1725142900848,2.0435,2518.0,2517.9,0.58463195]
[1725142901446,2.0435,2518.0,2517.9,1.43517787]
[1725142903547,2.0435,2518.0,2517.8,0.00595415]
[1725142903747,2.0435,2518.0,2517.9,1.43416136]
[1725142906958,2.0435,2518.0,2517.8,0.00595415]
[1725142907161,2.0435,2518.0,2517.9,0.58404793]
[1725142907453,2.0435,2518.0,2517.9,1.43374594]
[1725142910348,2.0435,2518.0,2517.8,0.00595415]
[1725142910655,2.0435,2518.0,2517.9,1.43348341]
[1725142911549,1.29,2518.0,2517.9,1.67178341]
[1725142911857,1.29,2518.0,2517.9,2.06248341]
[1725142913759,1.29,2518.0,2517.9,0.629]
[1725142913954,1.29,2518.0,2517.9,2.06200041]
[1725142914359,1.29,2518.0,2517.9,1.82370041]
[1725142914752,1.29,2518.0,2517.9,0.3907]
[1725142914965,1.29,2518.0,2517.9,1.43304198]
[1725142916055,1.29,2518.0,2517.9,1.43310388]
[1725142917260,1.29,2518.0,2517.8,0.24426415]
[1725142917457,1.29,2518.0,2517.9,1.4331114]
[1725142919454,1.0748,2518.1,2517.9,1.4331114]
[1725142919659,1.0748,2518.1,2518.0,1.4331114]
[1725142920567,1.0748,2518.1,2517.8,0.00595415]
[1725142920751,1.0748,2518.1,2518.0,1.43312607]
[1725142925459,7.4018,2519.4,2518.0,16.90690665]
[1725142925653,0.3851,2519.2,2518.5,1.29]
[1725142925860,1.29595415,2519.3,2518.6,4.58647748]
[1725142926064,1.29595415,2519.3,2518.7,0.23822]
[1725142926359,1.29595415,2519.3,2518.7,1.67014818]
[1725142926564,1.29595415,2519.3,2518.8,1.43192818]
[1725142926859,1.29595415,2519.3,2518.9,1.43192818]
[1725142927064,1.29595415,2519.3,2519.0,0.58331686]
[1725142927265,1.29595415,2519.3,2519.1,0.58331686]
[1725142927567,1.29595415,2519.3,2518.7,0.23822]
[1725142927868,1.29595415,2519.3,2518.8,1.66999402]
[1725142928068,1.29595415,2519.3,2518.9,0.58325895]
[1725142928260,1.29595415,2519.3,2518.8,0.23821]
[1725142928576,1.29595415,2519.3,2518.9,0.58325885]
[1725142928764,1.29595415,2519.3,2518.8,0.23821]
[1725142928972,1.29595415,2519.3,2518.9,0.5832569]
[1725142929267,4.50375415,2519.3,2518.8,0.23821]
[1725142929483,1.52821,2518.9,2518.2,4.35127]
[1725142929659,1.29,2518.5,2518.3,0.94673343]
[1725142929865,1.29,2518.5,2518.3,0.3632]
[1725142931361,0.7525,2518.8,2518.4,0.23825]
[1725142931559,2.0425,2518.8,2518.4,0.23825]
[1725142931960,2.0425,2518.8,2518.3,0.60146]
[1725142933366,0.3729,2518.8,2518.3,0.3632]
[1725142933568,3.2078,2519.0,2518.3,0.3632]
[1725142933569,1.29,2519.0,2518.6,0.23823]
[1725142933872,1.6628,2519.0,2518.7,0.3696]
[1725142936367,1.6628,2519.0,2518.7,0.60782]
[1725142939275,1.6628,2519.0,2518.7,0.3696]
[1725142939481,4.8706,2519.0,2518.7,0.3696]
[1725142939672,4.8706,2519.0,2518.6,0.23823]
[1725142939673,1.29,2518.9,2518.6,0.23823]
[1725142940972,1.29,2518.9,2518.4,0.3589]
[1725142941177,1.29,2518.9,2518.5,0.23824]
[1725142942069,1.52821,2518.9,2518.4,0.3589]
[1725142942270,4.4978,2518.7,2518.3,4.4762]
[1725142942471,0.3834,2518.6,2518.3,4.4762]
[1725142942673,0.7708,2518.6,2518.3,4.4762]
[1725142944882,0.7708,2518.6,2518.3,4.71446]
[1725142945267,0.7708,2518.6,2518.3,4.4762]
[1725142945673,0.7708,2518.6,2518.3,4.71446]
[1725142946973,0.7708,2518.6,2518.4,0.23825]
[1725142947778,0.7708,2518.6,2518.3,0.3632]
[1725142948683,0.7708,2518.6,2518.4,0.3834]
[1725142948886,0.7708,2518.6,2518.4,0.62165]
[1725142955196,4.19995415,2519.3,2518.4,4.3538]
[1725142955493,1.29,2519.1,2518.9,0.2382]
[1725142956486,1.29,2519.1,2519.0,0.2382]
[1725142956689,0.7411,2519.2,2519.0,0.2382]
[1725142956690,0.3618,2519.2,2519.0,0.2382]
[1725142957394,0.3618,2519.2,2519.1,0.23819]
[1725142961497,0.00595415,2519.3,2519.2,0.23818]
[1725142961800,0.00595415,2519.3,2519.2,1.36268]
[1725142963295,0.00595415,2519.3,2519.2,0.97938]
[1725142963595,0.00595415,2519.3,2519.2,0.62258]
[1725142964296,0.00595415,2519.3,2519.2,0.3844]
[1725142964496,0.00595415,2519.3,2519.1,0.23818]
[1725142968391,0.23822,2518.8,2518.3,8.35781655]
[1725142968598,1.29,2518.5,2518.4,0.58318145]
[1725142968911,1.29,2518.5,2518.1,0.62848]
[1725142969199,2.4076,2518.7,2518.2,0.82166509]
[1725142969389,2.4076,2518.7,2518.2,0.23827]
[1725142970293,2.4076,2518.7,2518.3,0.58338016]
[1725142970493,2.4076,2518.7,2518.2,0.23827]
[1725142970494,2.4076,2518.7,2518.1,0.99218]
[1725142970689,2.4076,2518.7,2518.2,0.58339091]
[1725142970899,2.4076,2518.7,2518.3,0.58339091]
[1725142971093,2.4076,2518.7,2518.1,0.99218]
[1725142971295,2.4076,2518.7,2518.2,0.58339159]
[1725142971502,2.4076,2518.7,2518.3,0.58339159]
[1725142971697,2.4076,2518.7,2518.1,0.99218]
[1725142971894,2.4076,2518.7,2518.2,0.58339449]
[1725142972096,2.4076,2518.7,2518.3,0.58339449]
[1725142972295,2.64583,2518.7,2518.1,0.7539]
[1725142972497,2.64583,2518.7,2518.2,0.58341838]
[1725142972703,2.4076,2518.7,2518.2,0.58341838]
[1725142972904,2.4076,2518.7,2518.3,0.58341838]
[1725142973203,2.4076,2518.7,2518.1,0.99218]
[1725142973407,2.4076,2518.7,2518.2,0.82167243]
[1725142973605,2.4076,2518.7,2518.3,0.58340243]
[1725142973794,2.4076,2518.7,2518.2,0.23827]
[1725142974105,2.4076,2518.7,2518.3,0.58340396]
[1725142974302,2.4076,2518.7,2518.2,0.23827]
[1725142974507,2.4076,2518.7,2518.3,0.58340314]
[1725142974709,2.4076,2518.7,2518.2,0.23827]
[1725142975001,2.4076,2518.7,2518.3,0.5834018]
[1725142975304,2.4076,2518.7,2518.1,0.99218]
[1725142975498,2.4076,2518.7,2518.2,0.58353351]
[1725142975698,2.4076,2518.7,2518.3,0.58353351]
[1725142975900,2.4076,2518.7,2518.1,0.99218]
[1725142976103,2.4076,2518.7,2518.2,0.23827]
[1725142976300,2.4076,2518.7,2518.3,0.58354324]
[1725142976501,2.4076,2518.7,2518.2,0.23827]
[1725142976812,2.4076,2518.7,2518.3,0.58353282]
[1725142977010,2.4076,2518.7,2518.2,0.23827]
[1725142977308,2.4076,2518.7,2518.3,0.5835376]
[1725142977605,2.4076,2518.7,2518.2,0.23827]
[1725142977798,2.4076,2518.7,2518.3,0.58353374]
[1725142978000,2.4076,2518.7,2518.2,0.23827]
[1725142978200,2.4076,2518.7,2518.3,0.5835376]
[1725142978401,2.4076,2518.7,2518.2,0.23827]
[1725142978603,2.4076,2518.7,2518.3,0.58355945]
[1725142978807,2.4076,2518.7,2518.3,0.23826]
[1725142980803,0.3887,2518.7,2518.3,1.29]
[1725142981107,0.3887,2518.7,2518.5,0.23824]
[1725142981503,0.3887,2518.7,2518.6,0.23823]
[1725142982905,1.29,2519.1,2518.6,4.55376029]
[1725142983107,0.3653,2518.9,2518.7,0.98312]
[1725142984917,0.00595415,2519.3,2518.8,0.23822]
[1725142985100,0.355,2519.1,2518.8,0.23822]
[1725142986715,0.355,2519.1,2518.9,0.2382]
[1725142986919,0.74045415,2519.3,2519.0,0.2382]
[1725142987209,1.09545415,2519.3,2519.0,0.2382]
[1725142987817,0.74005415,2519.3,2519.0,0.2382]
[1725142990211,0.74005415,2519.3,2518.8,0.23821]
[1725142990521,0.74005415,2519.3,2518.9,0.82118375]
[1725142990721,0.74005415,2519.3,2518.9,0.23821]
[1725142990922,0.74005415,2519.3,2518.8,0.23821]
[1725142991122,0.3623,2519.2,2518.9,0.5829981]
[1725142991310,0.3623,2519.2,2518.8,0.23821]
[1725142991620,0.3623,2519.2,2518.9,0.58299103]
[1725142991812,0.3623,2519.2,2518.8,0.23821]
[1725142992013,0.3623,2519.2,2518.9,0.58298642]
[1725142992209,0.3623,2519.2,2518.8,0.23821]
[1725142992413,0.3623,2519.2,2518.9,0.58299048]
[1725142992612,0.3623,2519.2,2518.8,0.23821]
[1725142992813,0.3623,2519.2,2518.9,0.58299993]
[1725142993105,0.3623,2519.2,2518.8,0.23821]
[1725142993306,0.3623,2519.2,2518.9,0.58300557]
[1725142993511,0.3623,2519.2,2518.8,0.23821]
[1725142993719,0.3623,2519.2,2518.9,0.5830075]
[1725142993921,0.3623,2519.2,2518.8,0.23821]
[1725142994221,0.3623,2519.2,2518.9,0.58300885]
[1725142994521,0.3623,2519.2,2518.8,0.23821]
[1725142994914,0.3623,2519.2,2518.9,0.58299937]
[1725142995112,0.3623,2519.2,2518.8,0.23821]
[1725142995416,0.3623,2519.2,2518.9,0.58300084]
[1725142995718,0.3623,2519.2,2518.8,0.23821]
[1725142995719,1.6523,2519.2,2518.8,0.23821]
[1725142995918,1.6523,2519.2,2518.9,0.58300895]
[1725142996219,1.6523,2519.2,2518.7,0.98312]
[1725142996420,1.6523,2519.2,2518.8,0.58304854]
[1725142996722,1.6523,2519.2,2518.7,0.98312]
[1725142997030,1.6523,2519.2,2518.6,3.2078]
[1725142997031,1.29,2519.0,2518.6,3.2078]
[1725142997326,0.3746,2518.9,2518.7,0.58310746]
[1725142997514,0.3746,2518.9,2518.6,3.2078]
[1725142997515,0.3899,2518.8,2518.6,3.2078]
[1725142997719,0.3899,2518.8,2518.7,0.58310994]
[1725142998224,0.3899,2518.8,2518.7,0.58310876]
[1725143001523,11.88852,2518.8,2518.4,4.113]